Cogmind - Beta 16 @@@ ROGUE MODE // 2025.11.14 @ 20:39:13 Player: jes Result: Destroyed by P-70 Sage with Tesla Rifle Performance ------------- Evolutions (5) 2500 Regions Visited (9) 1800 Robots Destroyed (87) 435 Value Destroyed (3583) 3583 Prototype IDs (0) 0 Alien Tech Used (0) 0 Bonus (494) 494 TOTAL SCORE: 8812 Bonus ------- High Alert Combat Kills 187 Follower Combat Kills 107 Entered Garrisons 200 Cogmind --------- Core Integrity 0/1000 Matter 220/300 Energy 66/100 System Corruption 1% Temperature Cool (0) Movement Core (100) Ox1 Location -5/Factory Parts ------- > --- POWER (2) -------- (None) > --- PROPULSION (4) --- (None) > --- UTILITY (8) ------ (None) > --- WEAPON (3) ------- Heavy Laser > --- INVENTORY (5) ---- Improved Medium Treads Improved Titanium Leg High-capacity Matter Pod (200) Peak State ------------ > --- POWER ------------ Improved Deuterium Engine Light Angular Momentum Engine > --- PROPULSION ------- Thunder Leg Thunder Leg Armored Huge Wheel > --- UTILITY ---------- Advanced Weight Redist. System Improved Trap Scanner Advanced Targeting Computer Microactuators Core Shielding Dynamic Insulation System Long-range Tractor Beam > --- WEAPON ----------- Heavy Laser Heavy Assault Rifle Axe > --- INVENTORY -------- Improved Medium Treads Improved Titanium Leg High-capacity Matter Pod Heavy Particle Cannon [Rating: 65] Favorites ----------- Power Improved Deuterium Engine Engine Improved Deuterium Engine Power Core Light Nuclear Core Propulsion Light Treads Treads Light Treads Leg Improved Carbon-fiber Leg Wheel Armored Huge Wheel Utility Medium Storage Unit Device ECM Suite Storage Medium Storage Unit Processor Core Analyzer Hackware Hacking Suite Protection Improved Light Armor Plating Weapon Light Assault Rifle Energy Gun Particle Gun Energy Cannon Heavy Particle Cannon Ballistic Gun Light Assault Rifle Ballistic Cannon Advanced Assault Cannon Launcher Rocket Launcher Special Weapon Mining Laser Impact Weapon Hammer Slashing Weapon Axe Piercing Weapon Spear Build | -11 -10 -10 -10 -9 -7 -6 -6 -6 -5 ------- Run | Yrd Mat Min Sub Rec Fac Fac Gar Fac Fac Slots Evolved 10 | . . . . . 6 2 . . 2 Power 1 | . . . . . . 1 . . . Propulsion 2 | . . . . . 2 . . . . Utility 6 | . . . . . 4 . . . 2 Weapon 1 | . . . . . . 1 . . . Parts Attached 115 | 5 12 1 . 8 51 3 14 8 13 Power 16 | 1 2 . . . 7 1 2 1 2 Engine 11 | 1 2 . . . 2 1 2 1 2 Core 5 | . . . . . 5 . . . . Reactor . | . . . . . . . . . . Propulsion 33 | 2 2 . . 2 17 1 5 1 3 Treads 9 | . . . . 2 5 1 1 . . Leg 22 | 2 2 . . . 11 . 4 1 2 Wheel 2 | . . . . . 1 . . . 1 Hover . | . . . . . . . . . . Flight . | . . . . . . . . . . Utility 37 | 1 2 . . 2 21 . 3 4 4 Device 17 | . . . . . 9 . 2 2 4 Storage 4 | 1 1 . . . 2 . . . . Processor 3 | . . . . . 2 . . 1 . Hackware 1 | . . . . . 1 . . . . Protection 12 | . 1 . . 2 7 . 1 1 . Artifact . | . . . . . . . . . . Weapon 29 | 1 6 1 . 4 6 1 4 2 4 Energy Gun 6 | 1 3 . . . . . 1 . 1 Energy Cannon 1 | . . . . . . . . 1 . Ballistic Gun 13 | . 2 . . 1 4 1 2 . 3 Ballistic Cannon 3 | . . . . 1 2 . . . . Launcher 2 | . 1 1 . . . . . . . Special Weapon 1 | . . . . 1 . . . . . Impact Weapon 1 | . . . . 1 . . . . . Slashing Weapon 1 | . . . . . . . . 1 . Piercing Weapon 1 | . . . . . . . 1 . . Special Melee Weapon . | . . . . . . . . . . Unidentified Prototypes . | . . . . . . . . . . Parts Lost 43 | . 3 . . . 15 . 12 . 13 Power 9 | . 2 . . . 3 . 1 . 3 Propulsion 7 | . . . . . 2 . 2 . 3 Utility 13 | . . . . . 6 . 4 . 3 Weapon 14 | . 1 . . . 4 . 5 . 4 Highest Loss Streak 12 | . 2 . . . 4 . 11 . 12 To Critical Strikes . | . . . . . . . . . . Average Backups 7 | 3 8 9 9 8 7 7 7 4 4 Power 1 | . . 1 1 1 1 1 . . . Propulsion 1 | 1 3 4 4 1 1 2 2 1 1 Utility 1 | . . 1 1 1 2 2 2 1 1 Weapon 3 | 1 3 3 3 5 2 1 . 1 1 Tool/Special . | . . . . . . . . . . Unused Backups 14 | . 4 . . 3 4 . 1 1 1 Power 4 | . 1 . . . 3 . . . . Propulsion 4 | . 1 . . 1 1 . 1 . . Utility 5 | . 1 . . 2 . . . 1 1 Weapon 1 | . 1 . . . . . . . . Tool/Special . | . . . . . . . . . . Average Slot Usage (%) 92 | . 86 100 100 99 95 98 90 18 73 Engine 8 | . 14 14 14 14 4 11 11 1 9 Core 1 | . . . . . 2 . . . . Treads 14 | . . . . 24 18 4 5 . . Leg 11 | . 28 28 28 3 10 22 18 2 9 Device 11 | . . . . . 18 20 11 5 25 Storage 8 | . 14 14 14 14 7 6 5 . . Processor 1 | . . . . . 1 6 5 3 4 Hackware 2 | . . . . . 4 . . . . Protection 9 | . 4 14 14 13 8 6 11 1 4 Energy Gun 2 | . 13 10 . . 1 . 1 . 2 Ballistic Gun 9 | . 11 14 14 15 6 20 10 . 2 Ballistic Cannon 5 | . . . . 11 6 . . . . Peak Build Rating 65 | 5 9 9 9 10 44 49 52 26 65 Average Rating 26 | 3 6 8 9 9 33 48 44 12 55 On Entrance 15 | . 5 9 9 9 10 40 49 1 26 Avg Prop Armor Cover (%) 6 | . . . . . 6 4 5 . 9 Naked Turns 105 | . . . . . . . 34 64 7 Heaviest Build 49 | 9 22 23 23 25 49 43 45 18 38 Greatest Support 88 | 20 20 20 20 40 88 51 51 30 55 Greatest Overweight (x) 2 | . 1 1 1 1 1 . . 2 . Average Overweight (x) . | . . 1 1 . . . . . . Largest Inventory Capacity 10 | 8 10 10 10 10 10 8 8 5 5 Average Capacity 8 | 6 9 10 10 10 9 8 7 5 5 Most Carried 10 | 5 10 10 9 10 10 7 8 5 5 Average Carried 7 | 3 8 9 9 8 7 6 7 3 4 Final Capacity 10 | 8 10 10 10 10 8 8 5 5 5 Final Carried 10 | 5 10 9 9 9 8 7 4 5 3 Class Distribution -------------------- 55% | Scavenger-Mutant 41% | Mutant Dominant Class ---------------- Mutant | -10/Materials Scavenger-Mutant | -10/Mines Mutant | -10/Subcaves Mutant | -9/Recycling Scavenger-Mutant | -7/Factory Scavenger-Skirmisher | -6/Factory Scavenger-Mutant | -6/Garrison Mutant | -6/Factory Scavenger-Mutant | -5/Factory Resources | -11 -10 -10 -10 -9 -7 -6 -6 -6 -5 ----------- Run | Yrd Mat Min Sub Rec Fac Fac Gar Fac Fac Matter Collected 3659 | 244 212 113 58 461 1734 . 532 118 187 Remotely 187 | . . . . . . . . . 187 Salvage Created 3113 | . 329 49 9 387 1533 . 418 118 270 Parts 153 | . 30 3 4 14 75 . 17 6 4 Haulers Intercepted . | . . . . . . . . . . Recyclers Shooed . | . . . . . . . . . . Parts Field Recycled 3 | . . . . . 3 . . . . Retrieved Matter 35 | . . . . . 35 . . . . Parts Self-Destructed 3 | . . . 3 . . . . . . Prevented . | . . . . . . . . . . Parts Restored . | . . . . . . . . . . Kills | -11 -10 -10 -10 -9 -7 -6 -6 -6 -5 ------- Run | Yrd Mat Min Sub Rec Fac Fac Gar Fac Fac Combat Hostiles Destroyed 78 | . 13 2 4 3 38 . 12 2 4 Melee 2 | . . . . . . . . 1 1 Guns 37 | . 11 . . 2 9 . 12 . 3 Cannons 30 | . . . . 1 28 . . 1 . AOE 8 | . 2 2 4 . . . . . . Classes Destroyed 12 | . 2 . . 3 7 . . . . Worker 1 | . . . . . 1 . . . . Builder 1 | . . . . 1 . . . . . Recycler 1 | . . . . 1 . . . . . Mechanic 1 | . . . . . 1 . . . . Operator 1 | . . . . . 1 . . . . Watcher 4 | . . . . . 4 . . . . Swarmer 21 | . 6 . 4 . 6 . 5 . . Grunt 36 | . 7 2 . . 18 . 5 1 3 Brawler 2 | . . . . . 2 . . . . Duelist 2 | . . . . . 1 . . 1 . Sentry 11 | . . . . 3 5 . 2 . 1 Programmer 6 | . . . . . 6 . . . . Best Kill Streak 6 | . 6 2 4 2 5 . 4 1 3 Combat Bots Only 6 | . 6 2 4 2 4 . 4 1 3 Max Kills in Single Turn 2 | . 2 1 2 1 1 . 1 1 1 Gunslinging 1 | . 1 . . . . . . . . Exploded 2 | . 2 1 2 . . . . . . Melee 1 | . . . . . . . . 1 1 Uniques/NPCs Destroyed . | . . . . . . . . . . Combat | -11 -10 -10 -10 -9 -7 -6 -6 -6 -5 -------- Run | Yrd Mat Min Sub Rec Fac Fac Gar Fac Fac Hostile Shots Fired 1006 | . 90 1 43 20 429 . 257 12 154 Missed 313 | . 25 1 21 8 127 . 84 3 44 Hits 693 | . 65 . 22 12 302 . 173 9 110 Melee 8 | . . . . . 8 . . . . Projectile 685 | . 65 . 22 12 294 . 173 9 110 AOE 1 | . . . . . 1 . . . . Critical Strikes 28 | . . . . 1 14 . 6 . 7 Damage Taken 10572 | . 678 . 182 182 4207 . 2696 161 2466 Core 2490 | . 143 . 13 41 444 . 755 85 1009 Absorbed by Shields 37 | . . . . . . . 27 10 . Redirected to Shielding 31 | . . . . . . . . . 31 Ignored by Resistances 84 | . . . . . 84 . . . . Regen/Repaired (Parts) 173 | . . . . . 173 . . . . Core Remaining (%) 39 | 100 . . . 21 36 . . 1 . Volleys Fired 277 | . 47 2 8 14 133 . 41 4 28 Largest 2 | . 2 2 2 2 2 . 2 1 2 Hottest 144 | . 85 53 53 100 105 . 108 75 144 Shots Fired 510 | . 76 4 14 24 262 . 76 4 50 Gun 376 | . 75 2 8 18 149 . 76 . 48 Cannon 121 | . . . . 2 113 . . 4 2 Launcher 9 | . 1 2 6 . . . . . . Special 4 | . . . . 4 . . . . . Kinetic 402 | . 29 2 8 20 237 . 59 . 47 Thermal 88 | . 35 . . 4 25 . 17 4 3 Explosive 9 | . 1 2 6 . . . . . . Electromagnetic 11 | . 11 . . . . . . . . Robot Hit Streak 12 | . 8 2 4 5 12 . 9 3 12 Robot Miss Streak 7 | . 4 . 2 1 3 . 7 1 2 Penetration Max . | . . . . . . . . . . Secondary Targets 7 | . 2 . . . . . 4 . 1 Max Gunslinging Chain 1 | . 1 . . . . . 1 . 1 Shots Hit Robots 385 | . 42 2 6 19 189 . 70 8 49 Core Hits 220 | . 18 3 6 7 95 . 73 4 14 Critical Kills 1 | . . . . 1 . . . . . Critical Parts Destroyed 2 | . 1 . . . 1 . . . . Critical Strikes 11 | . 1 . . 1 8 . . . 1 Burn 1 | . . . . . 1 . . . . Destroy 2 | . 1 . . 1 . . . . . Blast 6 | . . . . . 6 . . . . Smash 1 | . . . . . 1 . . . . Sever 1 | . . . . . . . . . 1 Melee Attacks 53 | . . . . 6 10 . 22 5 10 Impact 16 | . . . . 6 10 . . . . Slashing 15 | . . . . . . . . 5 10 Piercing 22 | . . . . . . . 22 . . Sneak Attacks 2 | . . . . 2 . . . . . Combat Hostiles . | . . . . . . . . . . Follow-up Attacks . | . . . . . . . . . . Damage Inflicted 8258 | . 758 162 462 414 3930 . 1305 262 965 Guns 4152 | . 506 6 25 94 1585 . 1305 . 631 Cannons 2418 | . . . . 39 2254 . . 75 50 Explosions 845 | . 252 156 437 . . . . . . Melee 843 | . . . . 281 91 . . 187 284 Ramming . | . . . . . . . . . . Kinetic 5559 | . 220 6 25 133 3575 . 988 . 612 Thermal 964 | . 239 . . . 264 . 317 75 69 Explosive 845 | . 252 156 437 . . . . . . Electromagnetic 47 | . 47 . . . . . . . . Impact 372 | . . . . 281 91 . . . . Slashing 471 | . . . . . . . . 187 284 Piercing . | . . . . . . . . . . Highest Corruption 9 | . . . . . 9 . . . 1 Average Corruption 4 | . . . . . 4 . . . 1 Corruption Purged . | . . . . . . . . . . Corruption Blocked . | . . . . . . . . . . Effects 33 | . . . . . 33 . . . . Message Errors 9 | . . . . . 9 . . . . Matter Fused 7 | . . . . . 7 . . . . Heat Flow Errors 3 | . . . . . 3 . . . . Energy Discharges 6 | . . . . . 6 . . . . Data Loss (minor) 1 | . . . . . 1 . . . . Data Loss (major) 1 | . . . . . 1 . . . . Misfires 4 | . . . . . 4 . . . . Alerts 2 | . . . . . 2 . . . . Overload Shots . | . . . . . . . . . . Overflow Damage 193 | . 58 . . 87 48 . . . . Projectiles 22 | . . . . . 22 . . . . Explosions 58 | . 58 . . . . . . . . Melee 113 | . . . . 87 26 . . . . Knockbacks 27 | . . . . . 27 . . . . Impact 2 | . . . . . 2 . . . . Kinetic 21 | . . . . . 21 . . . . Secondary 4 | . . . . . 4 . . . . Self-Inflicted Damage 92 | . 92 . . . . . . . . Shots 2 | . 2 . . . . . . . . Rammed . | . . . . . . . . . . Targets Rammed . | . . . . . . . . . . Kicked . | . . . . . . . . . . Crushed . | . . . . . . . . . . Highest Temperature 386 | . 138 19 1 69 386 . 75 . 48 Average Temperature 67 | . 44 10 1 31 117 . 15 . 16 Received Heat Transfer 3042 | . 102 . 129 63 1401 . 678 75 594 Effects 4 | . . . . . 4 . . . . Energy Bleed 1 | . . . . . 1 . . . . Interference 3 | . . . . . 3 . . . . Siege Activations . | . . . . . . . . . . Martial Activations . | . . . . . . . . . . Shielding Activations . | . . . . . . . . . . Robots Disrupted . | . . . . . . . . . . Combat Hostiles . | . . . . . . . . . . Robots Corrupted 3 | . . . . 2 1 . . . . Combat Hostiles 1 | . . . . . 1 . . . . Parts Fried 6 | . . . . 4 2 . . . . Impact Corruptions 7 | . . . . 5 2 . . . . Robots Melted . | . . . . . . . . . . Combat Hostiles . | . . . . . . . . . . Parts Melted 1 | . . . . . 1 . . . . Heat Transferred 2039 | . 560 . . . 666 . 591 111 111 Parts Sabotaged . | . . . . . . . . . . Parts Stolen . | . . . . . . . . . . Parts Stripped . | . . . . . . . . . . Power Chain Reactions . | . . . . . . . . . . Alert | -11 -10 -10 -10 -9 -7 -6 -6 -6 -5 ------- Run | Yrd Mat Min Sub Rec Fac Fac Gar Fac Fac Maximum Alert Level 2 | . 1 . . . 2 1 2 1 . Low Security (%) 65 | 100 98 100 . 100 44 . 31 23 100 Level 1 19 | . 1 . . . 28 100 38 76 . Level 2 14 | . . . . . 26 . 29 . . Level 3 . | . . . . . . . . . . Level 4 . | . . . . . . . . . . Level 5 . | . . . . . . . . . . High Security . | . . . . . . . . . . Max Security . | . . . . . . . . . . Peak Influence 543 | . 200 77 . 40 543 262 474 235 95 Initial 262 | . . 77 . 33 . 262 169 235 95 Average 155 | . 124 33 . 2 233 253 304 209 27 Influence Increases 2416 | . 437 66 95 112 1114 . 439 50 103 Destroy 0b10 Robot/C 1620 | . 260 40 80 60 760 . 300 40 80 Destroy 0b10 Robot/NC 55 | . . . . 20 35 . . . . Destroy Leader 308 | . 40 10 . . 208 . 20 10 20 Allied During Kill 13 | . . . . . . . 13 . . Successful Hack 108 | . 6 . . 28 50 . 21 . 3 Disable Machine 90 | . 60 . . . 30 . . . . Anti-Garrison Action 50 | . . . . . . . 50 . . Destroy Structure 112 | . 41 16 . 4 16 . 35 . . Lose Combat Pursuer 60 | . 30 . 15 . 15 . . . . Influence Decreases 2414 | . 238 229 60 183 578 294 233 303 296 Entered New Map 840 | . . 122 20 38 . 274 73 213 100 Time Decay 1190 | . 208 107 40 145 428 20 . 90 152 Lost Part 344 | . 30 . . . 150 . 120 . 44 Lost Ally 40 | . . . . . . . 40 . . Squads Dispatched 19 | . 2 . . . 14 . . . 3 Investigation 2 | . 1 . . . . . . . 1 Extermination 7 | . . . . . 6 . . . 1 Reinforcement 5 | . 1 . . . 4 . . . . Assault 1 | . . . . . 1 . . . . Garrison 4 | . . . . . 3 . . . 1 Intercept . | . . . . . . . . . . Searches Triggered . | . . . . . . . . . . Construction Impeded . | . . . . . . . . . . Haulers Reinforced . | . . . . . . . . . . Active Scanning Responses . | . . . . . . . . . . Cargo Convoy Interrupts . | . . . . . . . . . . Stealth | -11 -10 -10 -10 -9 -7 -6 -6 -6 -5 --------- Run | Yrd Mat Min Sub Rec Fac Fac Gar Fac Fac Distress Signals 2 | . . . . . 1 . . . 1 Communications Jammed . | . . . . . . . . . . Distress Signals . | . . . . . . . . . . Times Spotted 130 | . 16 2 7 3 68 . 25 2 7 Peak Tracking Total 10 | . 3 2 6 2 6 . 10 2 4 Tactical Retreats 15 | . 2 . 1 . 10 . 2 . . ECM-based Alert Blocks 23 | . . . . . 20 . 3 . . Traps | -11 -10 -10 -10 -9 -7 -6 -6 -6 -5 ------- Run | Yrd Mat Min Sub Rec Fac Fac Gar Fac Fac Traps Triggered 3 | . 1 . . . . . 1 1 . Indirectly . | . . . . . . . . . . Trap Hack Attempts . | . . . . . . . . . . Triggered . | . . . . . . . . . . Disarmed . | . . . . . . . . . . Reprogrammed . | . . . . . . . . . . Reused . | . . . . . . . . . . Traps Extracted . | . . . . . . . . . . Installed . | . . . . . . . . . . Triggered . | . . . . . . . . . . Machines | -11 -10 -10 -10 -9 -7 -6 -6 -6 -5 ---------- Run | Yrd Mat Min Sub Rec Fac Fac Gar Fac Fac Machines Disabled 9 | . 4 . 2 . 2 . 1 . . Max in Single Turn 2 | . 2 . 2 . 1 . 1 . . Garrison Relay 1 | . . . . . . . 1 . . Machines Repaired . | . . . . . . . . . . Machines Dismantled . | . . . . . . . . . . Machines Sabotaged . | . . . . . . . . . . Overloaded Fab Kills . | . . . . . . . . . . Hacking | -11 -10 -10 -10 -9 -7 -6 -6 -6 -5 --------- Run | Yrd Mat Min Sub Rec Fac Fac Gar Fac Fac Machines Accessed 33 | . 2 . . 12 13 2 2 1 1 Terminals 18 | . 2 . . 6 8 . 2 . . Fabricators 3 | . . . . . 1 . . 1 1 Repair Stations 3 | . . . . . 3 . . . . Recycling Units 8 | . . . . 6 1 1 . . . Scanalyzers . | . . . . . . . . . . Garrison Access 1 | . . . . . . 1 . . . Total Hacks 72 | . 4 . . 32 26 3 2 3 2 Successful 37 | . 2 . . 18 10 2 2 1 2 Failed 35 | . 2 . . 14 16 1 . 2 . Catastrophic 7 | . . . . 3 4 . . . . Database Lockouts . | . . . . . . . . . . Manual 10 | . 2 . . 5 3 . . . . Terminals 41 | . 4 . . 21 14 . 2 . . Fabricators 7 | . . . . . 2 . . 3 2 Repair Stations 8 | . . . . . 8 . . . . Recycling Units 15 | . . . . 11 2 2 . . . Scanalyzers . | . . . . . . . . . . Garrison Access 1 | . . . . . . 1 . . . Terminal Hacks 18 | . 2 . . 10 4 . 2 . . Part Schematic 3 | . . . . 3 . . . . . Robot Analysis 1 | . . . . 1 . . . . . Open Door 1 | . . . . . . . 1 . . Open DSF 1 | . . . . . 1 . . . . Branch Access Points 1 | . . . . 1 . . . . . Emergency Access Points 3 | . . . . 1 1 . 1 . . Terminal Index 2 | . 1 . . 1 . . . . . Alert Level 1 | . . . . 1 . . . . . Locate Traps 2 | . 1 . . . 1 . . . . Dispatch Records 1 | . . . . 1 . . . . . Hauler Manifests 1 | . . . . . 1 . . . . Zone Layout 1 | . . . . 1 . . . . . Fabricator Hacks 4 | . . . . . 1 . . 1 2 Load Schematic 3 | . . . . . 1 . . 1 1 Build 1 | . . . . . . . . . 1 Repair Station Hacks 4 | . . . . . 4 . . . . Scan Component 2 | . . . . . 2 . . . . Repair 2 | . . . . . 2 . . . . Recycling Unit Hacks 10 | . . . . 8 1 1 . . . Report Inventory 8 | . . . . 6 1 1 . . . Retrieve Components 2 | . . . . 2 . . . . . Scanalyzer . | . . . . . . . . . . Garrison Access Hacks 1 | . . . . . . 1 . . . Unlock Access 1 | . . . . . . 1 . . . Unauthorized Hacks . | . . . . . . . . . . Terminals . | . . . . . . . . . . Fabricators . | . . . . . . . . . . Repair Stations . | . . . . . . . . . . Recycling Units . | . . . . . . . . . . Scanalyzers . | . . . . . . . . . . Garrison Access . | . . . . . . . . . . Data Cores Recovered . | . . . . . . . . . . Used . | . . . . . . . . . . Hacking Detections 27 | . 2 . . 10 10 2 1 1 1 Full Trace Events 1 | . . . . . . . . . 1 Feedback Events . | . . . . . . . . . . Feedback Blocked . | . . . . . . . . . . Robot Schematics Acquired . | . . . . . . . . . . Robots Built . | . . . . . . . . . . Authchips . | . . . . . . . . . . Time . | . . . . . . . . . . Total Robot Build Rating . | . . . . . . . . . . Part Schematics Acquired 3 | . . . . 3 . . . . . Parts Built 2 | . . . . . . . . . 2 Authchips . | . . . . . . . . . . Time 62 | . . . . . . . . . 62 Total Part Build Rating 4 | . . . . . . . . . 4 Part Studies Acquired . | . . . . . . . . . . Parts Repaired 2 | . . . . . 2 . . . . Time 44 | . . . . . 44 . . . . Parts Recycled . | . . . . . . . . . . Recycled Matter . | . . . . . . . . . . Retrieved Matter . | . . . . . . . . . . Retrieved Components 3 | . . . . 3 . . . . . Parts Scanalyzed . | . . . . . . . . . . Part Schematics Acquired . | . . . . . . . . . . Parts Damaged . | . . . . . . . . . . Bothacking | -11 -10 -10 -10 -9 -7 -6 -6 -6 -5 ------------ Run | Yrd Mat Min Sub Rec Fac Fac Gar Fac Fac Used RIF Installer . | . . . . . . . . . . Robots Hacked . | . . . . . . . . . . Non-combat . | . . . . . . . . . . Combat . | . . . . . . . . . . Robot Hacks Applied . | . . . . . . . . . . Relay Couplers Released 5 | . . . . . . . 5 . . Machine Destruction 5 | . . . . . . . 5 . . Fabnet Peak Effective % . | . . . . . . . . . . Robots Rewired 2 | . . . . . . . 2 . . Allies Hacked . | . . . . . . . . . . Hacks Repelled . | . . . . . . . . . . Allies | -11 -10 -10 -10 -9 -7 -6 -6 -6 -5 -------- Run | Yrd Mat Min Sub Rec Fac Fac Gar Fac Fac Total Allies 2 | . . . . . . . 2 . . Largest Group 2 | . . . . . . . 2 . . Highest-Rated Group 97 | . . . . . . . 97 . . Highest-Rated Ally 51 | . . . . . . . 51 . . Initial Warlord ECA Mod 1 | . . . . . . . . 1 . Total Orders . | . . . . . . . . . . Ally Attacks 14 | . . . . . . . 14 . . Total Damage 304 | . . . . . . . 304 . . Kills 3 | . . . . . . . 3 . . Allies Corrupted . | . . . . . . . . . . Allies Melted . | . . . . . . . . . . Intel | -11 -10 -10 -10 -9 -7 -6 -6 -6 -5 ------- Run | Yrd Mat Min Sub Rec Fac Fac Gar Fac Fac Active Infowar (turns) 3915 | . . . . . 2760 49 539 128 439 Optics 679 | . . . . . 91 49 539 . . Sensors 94 | . . . . . 43 49 2 . . Traps 567 | . . . . . . . . 128 439 Jamming 1287 | . . . . . 1287 . . . . ECM 3324 | . . . . . 2760 49 515 . . Robot Analysis Total 1 | . . . . 1 . . . . . Derelict Logs Recovered . | . . . . . . . . . . Drone Launches . | . . . . . . . . . . Drone Recoveries . | . . . . . . . . . . Exploration | -11 -10 -10 -10 -9 -7 -6 -6 -6 -5 ------------- Run | Yrd Mat Min Sub Rec Fac Fac Gar Fac Fac Turns Passed 7347 | 49 510 298 94 1644 3431 49 592 197 483 Spaces Moved 3874 | 36 223 152 37 935 1780 37 310 211 153 Core 247 | 9 . . . . . . 65 167 6 Treads 2044 | . . . . 866 1175 . 2 1 . Legs 1578 | 27 223 152 37 69 605 37 243 43 142 Wheels 5 | . . . . . . . . . 5 Hover . | . . . . . . . . . . Flight . | . . . . . . . . . . Fastest Speed 50 | 50 120 190 190 120 120 120 50 50 50 Average Speed 142 | 102 136 190 190 161 146 120 105 67 118 Slowest Speed 190 | 120 190 190 190 190 190 120 160 160 130 Overloaded Moves . | . . . . . . . . . . Propulsion Burnouts . | . . . . . . . . . . Robots Hopped . | . . . . . . . . . . Potential Cave-ins . | . . . . . . . . . . Cave-ins Triggered . | . . . . . . . . . . Exploration Rate (%) 25 | 3 35 34 6 95 40 1 37 4 3 Regions Visited 9 Branch Regions 3 Pre-discovered Areas . | . . . . . . . . . . Known Exits Taken 1 | . . . . . . 1 . . . Unknown Exits Taken 7 | 1 1 1 1 1 1 . . 1 . Scrap Searched 1 | . . 1 . . . . . . . Spaces Dug 16 | . 7 . . 4 . . 5 . . Terrain Destroyed 132 | . 52 24 35 4 12 . 5 . . Melee 5 | . . . . . . . 5 . . Projectile 16 | . . . . 4 12 . . . . AOE 111 | . 52 24 35 . . . . . . Terrain Rammed . | . . . . . . . . . . Walls Destroyed . | . . . . . . . . . . Machines Disabled . | . . . . . . . . . . Actions | -11 -10 -10 -10 -9 -7 -6 -6 -6 -5 --------- Run | Yrd Mat Min Sub Rec Fac Fac Gar Fac Fac Total 5115 | 45 354 160 49 1025 2338 41 465 251 387 Wait 582 | . 49 1 5 42 266 . 33 14 172 Move 3866 | 35 222 151 36 934 1779 37 309 210 153 Hop . | . . . . . . . . . . Pick Up 67 | 5 14 2 . 7 31 . 3 3 2 Fast Attach 64 | 5 2 . . 1 28 1 10 6 11 Attach 36 | . 3 . . . 17 2 4 3 7 Detach 17 | . . . . 1 7 1 3 2 3 Swap 45 | . 9 1 . 11 21 . 3 . . Drop 79 | . 8 3 . 9 46 . 11 1 1 Fire 277 | . 47 2 8 14 133 . 41 4 28 Melee 53 | . . . . 6 10 . 22 5 10 Ram . | . . . . . . . . . . Kick . | . . . . . . . . . . Crush . | . . . . . . . . . . Escape Stasis 7 | . . . . . . . 4 3 . Rewire 22 | . . . . . . . 22 . . Trap . | . . . . . . . . . . Miscellaneous . | . . . . . . . . . . Route ------- -11/Scrapyard -10/Materials -10/Mines -10/Subcaves -9/Recycling -7/Factory (discovered 3 exits: *Fac / [*Low x2]) -6/Factory -6/Garrison -6/Factory -5/Factory History --------- Turn | Location | Event 6 | -11/Scrapyard | Discovered new exit (range 15) 50 | -11/Scrapyard | Entered Materials 347 | -10/Materials | Build established: Mutant 447 | -10/Materials | Discovered new exit (range 11) 490 | -10/Materials | Core integrity fell below 50% 560 | -10/Materials | Entered Mines 688 | -10/Mines | Received a Rocket Launcher from a helpful Derelict 845 | -10/Mines | Discovered new exit (range 6) 858 | -10/Mines | Entered Subcaves 919 | -10/Subcaves | Discovered new exit (range 15) 952 | -10/Subcaves | Entered Recycling 2212 | -9/Recycling | Discovered new exit (range 14) 2596 | -9/Recycling | Entered Factory 2596 | -7/Factory | Evolved 6 slots: Propulsion x2, Utility x4 3012 | -7/Factory | Discovered new exit (range 7) 3458 | -7/Factory | Build established: Scavenger-Mutant 3522 | -7/Factory | Discovered new exit (range 5) 3575 | -7/Factory | Repaired Med. Treads 4053 | -7/Factory | Garrison activated, responded to threat 4122 | -7/Factory | Lost 3 parts (1p1n1u) 5178 | -7/Factory | Repaired Transmission Jammer 5396 | -7/Factory | First assault squad dispatched 5585 | -7/Factory | Core integrity fell below 50% 5761 | -7/Factory | Lost 4 parts (1n2u1w) 5999 | -7/Factory | Discovered new exit (range 13) 6027 | -7/Factory | Entered another Factory area 6027 | -6/Factory | Evolved 2 slots: Power x1, Weapon x1 6076 | -6/Factory | Identified exit to Garrison 6076 | -6/Factory | Entered Garrison 6262 | -6/Garrison | Triggered checkpoint 6359 | -6/Garrison | Garrison Relay disabled 6521 | -6/Garrison | Triggered checkpoint 6526 | -6/Garrison | Spotted B-75 Beast 6615 | -6/Garrison | Released all parts (7) 6625 | -6/Garrison | Core integrity fell below 50% 6650 | -6/Garrison | Core integrity fell below 20% 6663 | -6/Garrison | Discovered new exit (range 10) 6668 | -6/Garrison | Entered Factory 6680 | -6/Factory | Lost 11 parts (1p2n4u4w) 6847 | -6/Factory | Discovered new exit (range 15) 6865 | -6/Factory | Entered another Factory area 6865 | -5/Factory | Evolved 2 slots: Utility x2 7187 | -5/Factory | Fabricated Hvy. Assault Rifle (x2) 7286 | -5/Factory | Garrison activated, responded to threat 7314 | -5/Factory | Released all parts (7) 7328 | -5/Factory | Core integrity fell below 50% 7340 | -5/Factory | Core integrity fell below 20% 7348 | -5/Factory | Destroyed by P-70 Sage with Tesla Rifle Last Messages --------------- 07324_ Slug penetrates Wall. 07327_ Penetrated by Slug. 07329_ Y-64 Sentinel destroyed. 07329_ Slug penetrates Wall. 07330_ Slug penetrates Garrison Access. 07330_ W-25 Informer sends out distress signal. 07332_ Acquired KE Penetrator. 07332_ Penetrated by Slug. 07334_ Axe destroyed. 07334_ Penetrated by Slug. 07337_ Slug penetrates Garrison Access. 07338_ Penetrated by Slug. 07338_ Slug penetrates Wall. 07339_ Penetrated by Slug. 07340_ Slug penetrates P-70 Sage. 07342_ Penetrated by Slug. 07344_ Slug penetrates P-70 Sage. 07345_ KE Penetrator destroyed. 07346_ Penetrated by Slug. 07348_ Acquired Hvy. Laser. Map ----- +----------------------------------------------------+ | ????????????????????????????????# # + | | ????????????????????????????????# # # | | ????????????????????????????????# # # | | ????????????????????????????????# """ # # ! | | ????????????????????????????????# """"" # # | | ????????????????????????????????# """"" # # | | ????????????????????????????????# # # | | ????????????????????????????????# # # | | ??????????????????????????###########+##### ###### | | ??????????????????????????# | | ??????????????????????????# | | ??????????????????????????# | | ??????????????????????????# | | ??????????????????????????# | | ??????????????????????????# #####+############ | | ?????????##############+### # #???# | | ???????? # ^"""" #???# | | ???????? #^ ""F" #???# | | ??????? # #???# | | ??????? #! ^ #???# | | ??????? # """ =#???# | | ??????????????########+########## """""[ #???# | | ????????????????# ; ##^""""" #???# | | ????????????????# p ; ## #???# | | ????????????????# "" #??##########???# | | ????????????????# "" @] #???????????????# | | ????????????????# "" !!! #???????????????# | | ????????????????#[| #???????????????##### | | ????????????????#[| Y " #???????????????????? | | ????????????????#[ ! Y[""" #???????????????????? | | ????????????????# ! ! G #???????????????????? | | ????????????????# """ #???????????????????? | | ????????????????# " #???????????????????? | | ????????????????# #???????????????????? | | ????????????????## ###########???????????????????? | | ?????????????????##??????????????????????????????? | | ?????????????????????????????????????????????????? | | ?????????????????????????????????????????????????? | | ?????????????????????????????????????????????????? | | ?????????????????????????????????????????????????? | | ?????????????????????????????????????????????????? | | ?????????????????????????????????????????????????? | | ?????????????????????????????????????????????????? | | ?????????????????????????????????????????????????? | | ?????????????????????????????????????????????????? | | ?????????????????????????????????????????????????? | | ?????????????????????????????????????????????????? | | ?????????????????????????????????????????????????? | | ?????????????????????????????????????????????????? | | ?????????????????????????????????????????????????? | +----------------------------------------------------+ Best States ------------- Heat Dissipation 62 Energy Generation 29 Energy Capacity 480 Matter Stores 300 Matter Capacity 300 Sight Range 18 Robot Scan Range 15 Terrain Scan Density 10 ECM Strength 1 Jamming Range 12 Additional Mass Support 9 EM Shielding 2 Armor Coverage 600 Resistance: KI 20 Core Shielding 20 Melee Speed Boost 20 Evasion (%) 70 Targeting Accuracy 8 Core Analysis 6 Recoil Reduction 4 Offensive Hacking 10 Item Schematics ----------------- Imp. Treads | -9/Recycling | Hacked Hvy. Assault Rifle | -9/Recycling | Hacked Imp. Deuterium Engine | -9/Recycling | Hacked Robot Schematics ------------------ None Fabricated ------------ Hvy. Assault Rifle | x2 | -5/Factory Repaired ---------- Med. Treads | 13% | -7/Factory Transmission Jammer | 35% | -7/Factory Studied --------- None Alien Tech Used ----------------- None Achievements -------------- None Challenges ------------ None Game ------ Seed DiametricNuclearExoskeleton Manual? 0 Play Time 01:59:40 Cumulative 83.6 hours Start 2025.11.14 @ 18:28:35 End 2025.11.14 @ 20:39:13 Sessions 1 Manual Loads 0 Difficulty Rogue Special Mode None Game No. 47 Rogue 47 Adventurer 0 Explorer 0 Win Type - Total 0 Types 0/0/0/0/0/0/0/0/0/0 Lore% 17 Gallery% 29 Achievement% 22 Wizard Run 0 Options --------- Layout 2 ASCII 1 Keyboard 1 Movement Vi Keybinds 0 Fullscreen 2 Font 32/Terminus Map View 50x44 Zoom Use 0% Tactical HUD 1 Map Filters NONE Filters NONE Steam 1 RUN: ec87ae23-0635-4b56-891b-179317424e41